bitfinex/quotes_ETHUSD_20250511
["timestamp","ask_amount","ask_price","bid_price","bid_amount"]
[1746967321540,5.05052165,2514.7,2514.0,2.865]
[1746967322058,1.073822,2514.7,2514.0,2.865]
[1746967322383,1001.06523211,2515.0,2514.1,2.90477242]
[1746967322384,1000.0,2515.0,2514.1,2.90477242]
[1746967322678,1003.97623444,2515.0,2514.2,0.7621]
[1746967323039,3.97668855,2514.7,2514.2,0.7621]
[1746967323240,3.97668855,2514.7,2513.5,0.55]
[1746967323241,8.7992,2514.7,2513.9,2.865]
[1746967323455,0.7992,2513.9,2513.0,0.812]
[1746967323648,3.9781355,2513.8,2513.0,0.812]
[1746967323964,8.0,2513.7,2512.7,2.865]
[1746967324175,3.97882749,2513.4,2512.4,3.677]
[1746967324477,0.7992,2513.6,2512.4,3.677]
[1746967324685,3.97892121,2513.3,2512.4,3.677]
[1746967325034,8.7992,2513.6,2512.0,0.812]
[1746967325035,0.7992,2513.1,2512.0,0.812]
[1746967325235,3.97949992,2512.9,2512.0,0.812]
[1746967325437,0.29513426,2512.9,2512.0,0.812]
[1746967325731,0.7992,2513.1,2512.1,0.03980157]
[1746967325936,3.6662,2513.1,2512.2,2.865]
[1746967326168,0.22240919,2513.0,2512.2,3.2327]
[1746967326574,4.20174029,2513.0,2512.2,2.865]
[1746967326771,8.22240919,2512.9,2511.7,3.677]
[1746967327067,3.97979924,2512.7,2511.7,3.677]
[1746967327250,3.98001178,2512.6,2511.8,8.0]
[1746967327443,0.22240919,2512.6,2511.8,8.0]
[1746967327635,0.22240919,2512.6,2511.9,0.03980349]
[1746967327968,0.22240919,2512.6,2512.1,8.0]
[1746967328466,0.22240919,2512.5,2512.0,3.677]
[1746967328877,0.22240919,2512.5,2512.0,0.812]
[1746967329045,0.22240919,2512.4,2512.0,0.812]
[1746967329681,0.22240919,2512.4,2511.8,2.865]
[1746967329891,3.98059149,2512.2,2510.1,6.15]
[1746967330090,0.22240919,2512.3,2511.4,0.812]
[1746967330257,3.98082858,2512.1,2511.4,0.812]
[1746967330666,3.98082858,2512.1,2250.0,41.685]
[1746967330667,3.98136658,2511.8,2510.8,3.677]
[1746967330862,0.7992,2511.9,2510.8,8.812]
[1746967331075,5.17079433,2511.9,2510.9,1.1677]
[1746967331380,4.20363453,2511.8,2510.8,0.812]
[1746967331683,3.98151144,2511.7,2510.9,2.865]
[1746967331854,0.22240919,2511.8,2510.8,0.812]
[1746967332058,0.22240919,2511.7,2510.8,0.812]
[1746967332368,0.22240919,2511.7,2510.8,1.6932]
[1746967332551,0.22240919,2511.7,2510.5,2.865]
[1746967332552,0.22240919,2511.7,2511.1,0.55]
[1746967332892,3.6762,2513.3,2511.7,0.799]
[1746967333045,10.904,2513.2,2511.9,8.799]
[1746967333245,3.20818912,2513.2,2511.9,8.799]
[1746967333474,0.2212349,2513.1,2511.9,8.799]
[1746967333791,0.2212349,2513.1,2512.1,0.799]
[1746967333971,0.7742,2512.6,2511.5,0.799]
[1746967334175,11.98034249,2512.4,2511.5,0.799]
[1746967334371,8.0,2512.4,2511.5,0.799]
[1746967334878,0.2212349,2512.3,2511.5,0.799]
[1746967335073,1.73617254,2512.3,2511.5,0.799]
[1746967335262,0.2212349,2512.3,2511.6,8.03981094]
[1746967335459,2.949,2512.8,2511.6,8.0]
[1746967335664,6.92868124,2512.8,2511.6,8.0]
[1746967335986,0.7742,2513.0,2511.7,0.03980323]
[1746967336285,0.7742,2513.0,2511.8,0.83880061]
[1746967336587,0.22099915,2512.9,2512.1,0.55]
[1746967336792,0.22099915,2512.9,2512.2,2.866]
[1746967337401,0.22099915,2512.9,2512.3,0.8118]
[1746967337691,2.943,2513.5,2512.3,8.85159485]
[1746967337855,2.943,2513.5,2512.4,2.942]
[1746967338051,0.2943,2513.4,2512.6,0.8118]
[1746967338385,0.8232,2513.7,2512.7,0.03978884]
[1746967338550,0.2209449,2513.6,2512.8,2.866]
[1746967339281,2.941,2513.9,2512.9,0.03978663]
[1746967339688,3.97812168,2513.8,2512.8,2.866]
[1746967339986,0.22094676,2513.7,2512.8,2.866]
[1746967340199,3.97835773,2513.6,2512.8,2.866]
[1746967340497,3.97875679,2513.4,2512.8,2.866]
[1746967340788,0.22094676,2513.3,2512.8,2.866]
[1746967341255,1.04414676,2513.3,2512.6,0.8118]
[1746967341455,0.22094676,2513.2,2512.7,0.03979722]
[1746967341658,0.22094676,2513.2,2512.7,1.17175972]
[1746967342081,0.22094676,2513.5,2512.7,1.17175972]
[1746967342607,0.22094676,2513.5,2512.7,1.21154941]
[1746967342900,0.22094676,2513.6,2512.9,0.55]
[1746967343058,0.22094676,2513.6,2513.0,0.8118]
[1746967343261,0.22094676,2513.6,2513.1,2.94]
[1746967343462,0.22094676,2514.0,2513.1,3.37018]
[1746967344104,3.97820423,2513.7,2513.1,2.94]
[1746967344268,4.19872481,2514.0,2513.1,2.94]
[1746967344465,3.97788297,2513.9,2513.1,2.94]
[1746967344702,0.22094676,2513.8,2513.1,2.94]
[1746967344998,4.19902397,2513.8,2513.1,2.94]
[1746967345204,0.4199024,2513.7,2513.1,2.94]
[1746967345494,0.22094676,2513.7,2513.1,2.94]
[1746967346065,0.22094676,2514.0,2513.1,2.94]
[1746967346262,3.97845422,2513.6,2513.1,2.94]
[1746967346461,3.97852869,2513.5,2513.1,2.94]
[1746967346702,8.22094676,2514.0,2513.1,2.94]
[1746967346703,3.97845896,2513.6,2513.1,2.94]
[1746967347003,0.22094676,2513.4,2513.0,0.8118]
[1746967348023,0.22094676,2513.6,2513.0,0.8118]
[1746967348186,0.22094676,2513.6,2512.8,2.94]
[1746967348520,3.97858413,2513.5,2512.8,2.94]
[1746967348688,12.19939544,2513.6,2512.8,2.94]
[1746967348891,1.59455954,2513.5,2512.8,2.94]
[1746967349089,5.57309788,2513.5,2512.6,3.7349]
[1746967349288,1.59455954,2513.5,2512.6,3.7349]
[1746967349484,4.1997046,2513.4,2512.6,3.7349]
[1746967350111,3.97887038,2513.3,2512.6,3.7349]
[1746967350327,0.41998171,2513.2,2512.6,3.7349]
[1746967350542,3.97899092,2513.2,2512.6,3.7349]
[1746967350994,3.97899092,2513.2,2512.6,0.7949]
[1746967351184,0.22094676,2513.1,2511.9,8.43348006]
[1746967351414,0.21467424,2513.1,2512.2,0.7949]
[1746967351637,0.21467424,2513.1,2512.1,8.0]
[1746967351638,0.21467424,2513.1,2512.4,0.7949]
[1746967351927,9.59455954,2513.5,2512.5,0.03979357]
[1746967352230,10.05,2513.9,2512.5,0.03979357]
[1746967352231,14.02796316,2513.9,2512.7,8.7949]
[1746967352528,4.98304438,2513.8,2512.8,1.50647775]
[1746967352716,1.005,2513.8,2512.8,1.50647775]
[1746967352910,1.005,2513.8,2512.9,0.7954]
[1746967353400,4.05758665,2514.1,2512.9,0.7954]
[1746967353603,3.97772474,2514.0,2512.9,0.7954]
[1746967353907,3.97788297,2513.9,2512.9,0.7954]
[1746967354119,9.12558665,2514.1,2512.9,0.7954]
[1746967354630,5.10320684,2514.1,2512.9,0.7954]
[1746967354788,1.31032068,2514.0,2513.0,0.23863614]
[1746967354998,14.84068443,2514.9,2513.2,8.55]
[1746967355231,3.97646968,2514.8,2513.5,0.7954]
[1746967355415,10.8643,2514.9,2513.5,0.7954]
[1746967355620,3.9771815,2514.4,2513.5,0.7954]
[1746967355824,0.39771815,2514.4,2513.5,2.19593668]
[1746967356021,10.8643,2514.9,2513.5,2.19593668]
[1746967356022,3.97695788,2514.5,2513.5,2.19593668]
[1746967356235,0.30477178,2514.6,2513.6,0.03977493]
[1746967356538,3.97696464,2514.5,2513.7,0.7954]
[1746967356941,3.97684753,2514.6,2513.7,0.7954]
[1746967357132,3.97670423,2514.7,2513.7,0.7954]
[1746967357303,1.19767042,2514.6,2513.7,0.7954]
[1746967357636,11.97649696,2514.8,2513.7,0.7954]
[1746967357637,8.0,2514.8,2513.7,0.7954]
[1746967357832,8.30154921,2514.8,2513.8,0.03977208]
[1746967358002,8.30154921,2514.8,2513.9,2.939]
[1746967358207,12.2780892,2514.8,2513.9,2.939]
[1746967358535,8.30154921,2514.8,2513.9,2.939]
[1746967358765,2.31422937,2514.7,2513.7,0.7954]
[1746967358941,0.30154921,2514.8,2514.0,2.939]
[1746967359121,3.97654441,2514.8,2514.2,0.82]
[1746967359441,3.97784703,2514.0,2513.4,0.0397705]
[1746967359640,8.0,2514.0,2513.1,0.82]
[1746967360010,3.97764153,2514.1,2513.1,0.82]
[1746967360011,2.941,2514.2,2513.1,0.82]
[1746967360411,2.941,2514.2,2513.0,8.23863614]
[1746967360412,2.941,2514.2,2513.3,8.82]
[1746967361347,2.936,2514.4,2513.4,0.82]
[1746967361557,3.97755312,2514.2,2513.4,0.82]
[1746967361856,3.97753416,2514.2,2513.4,0.82]
[1746967362359,2.936,2514.4,2513.4,0.82]
[1746967362600,3.97756652,2514.1,2513.4,0.82]
[1746967362886,3.97772864,2514.0,2513.4,0.82]
[1746967363083,3.97771942,2514.1,2513.4,0.82]
[1746967363669,3.97775288,2514.0,2513.4,0.82]
[1746967364365,0.22208935,2513.9,2513.4,0.82]
[1746967364569,4.20012449,2513.9,2513.4,0.82]
[1746967364764,0.22208935,2513.9,2513.4,0.82]
[1746967364971,0.22208935,2513.9,2512.7,0.7863]
[1746967364972,3.97877342,2513.4,2512.7,0.7863]
[1746967365194,0.22208935,2513.3,2512.7,0.7863]
[1746967365347,0.22208935,2513.3,2512.9,0.7863]
[1746967365547,0.22208935,2513.3,2513.0,0.03978786]
[1746967365788,0.22208935,2513.3,2512.9,0.7863]
[1746967365996,0.22208935,2513.7,2512.9,0.7863]
[1746967366305,3.9784348,2513.6,2512.9,0.7863]
[1746967366492,4.5971476,2513.7,2512.9,0.7863]
[1746967366694,0.61887346,2513.7,2512.9,3.7253]
[1746967366863,0.22208935,2513.6,2512.9,3.7253]
[1746967367250,0.22208935,2513.5,2513.0,0.8260864]
[1746967367897,0.22208935,2513.4,2513.0,0.8260864]
[1746967368393,0.22208935,2513.4,2513.0,8.0397864]
[1746967368595,0.22208935,2513.9,2513.2,0.7757]
[1746967369462,0.22208935,2513.8,2513.2,0.7757]
[1746967370060,3.97863488,2513.5,2513.2,0.7757]
[1746967370905,0.22208935,2513.4,2513.2,0.7757]
[1746967371404,4.20081975,2513.4,2512.8,3.7147]
[1746967371696,0.22208935,2513.3,2512.8,0.7757]
[1746967371898,4.2009373,2513.3,2512.8,3.6887]
[1746967372100,3.9792295,2513.1,2512.8,3.6887]
[1746967372303,4.20142941,2513.0,2512.8,2.913]
[1746967372463,0.22208935,2513.0,2512.8,2.913]
[1746967372669,4.20151413,2513.0,2512.5,0.7757]
[1746967373175,0.22208935,2512.9,2512.5,0.7757]
[1746967373398,4.20157408,2512.9,2512.5,0.7757]
[1746967373583,0.22208935,2512.9,2512.5,0.7757]
[1746967373785,0.22208935,2512.8,2512.5,0.7757]
[1746967374020,0.22208935,2512.8,2512.5,1.18436959]
[1746967374392,0.22208935,2512.8,2512.5,0.7757]
[1746967374594,0.22208935,2512.7,2512.5,0.7757]
[1746967375201,0.22208935,2512.7,2512.5,0.81549595]
[1746967375602,0.22208935,2513.1,2512.5,0.81549595]
[1746967375774,0.22208935,2513.1,2512.5,0.7757]
[1746967375975,0.22208935,2513.1,2512.6,0.36897]
[1746967376172,0.22208935,2513.1,2512.7,0.7939]
[1746967376480,0.22208935,2513.0,2512.7,0.7939]
[1746967377212,4.20100497,2513.3,2512.7,0.7939]
[1746967377712,4.20100074,2513.3,2512.7,0.7939]
[1746967378101,0.22208935,2513.2,2512.7,0.7939]
[1746967378304,0.7798,2513.1,2512.4,2.914]
[1746967378617,3.9793076,2513.0,2512.4,2.914]
[1746967379419,0.22208935,2512.9,2512.4,2.914]
[1746967379584,0.22208935,2512.9,2512.4,3.28533]
[1746967380187,0.22208935,2512.9,2512.6,0.7993]
[1746967380415,0.22208935,2513.2,2512.6,0.7993]
[1746967381132,4.20131213,2513.1,2512.6,0.7993]
[1746967381789,0.22208935,2513.0,2512.6,0.7993]
[1746967382234,0.22208935,2513.0,2512.6,1.207763]
[1746967382987,0.22208935,2512.9,2512.6,1.207763]
[1746967383830,0.22208935,2513.2,2512.6,1.207763]
[1746967384623,0.22208935,2513.1,2512.7,0.0397932]
[1746967384786,3.97954217,2512.9,2512.6,0.7993]
[1746967384992,4.47768532,2512.9,2512.6,0.7993]
[1746967385204,0.22208935,2513.1,2512.6,0.7993]
[1746967385405,0.22208935,2513.1,2512.7,0.03979467]
[1746967385802,0.22208935,2513.0,2512.7,0.03979467]
[1746967386740,0.22208935,2513.5,2512.6,0.7993]
[1746967386943,3.97900031,2513.2,2512.6,0.92358174]
[1746967387116,3.97938256,2513.0,2512.6,0.92358174]
[1746967387320,3.97938256,2513.0,2512.6,0.12428174]
[1746967387523,0.22208935,2512.9,2512.6,0.12428174]
[1746967388342,0.22208935,2512.8,2512.5,0.03979907]
[1746967389065,0.22208935,2512.8,2512.4,2.914]
[1746967389366,0.22208935,2512.7,2512.4,3.28533]
[1746967389763,0.22208935,2512.7,2512.4,0.37133]
[1746967389962,0.22208935,2512.6,2512.0,3.7133]
[1746967390742,0.22208935,2512.5,2512.0,3.7133]
[1746967391043,3.98036409,2512.4,2512.0,2.914]
[1746967391258,0.7798,2512.3,2512.0,2.914]
[1746967391479,3.98073325,2512.1,2511.5,3.7133]
[1746967391882,4.20271246,2512.2,2511.5,3.7133]
[1746967392174,4.20271334,2512.2,2511.5,3.7133]
[1746967392381,4.20293279,2512.1,2511.5,3.7133]
[1746967392787,3.98093542,2512.0,2511.5,3.7133]
[1746967392945,0.22208935,2511.9,2511.5,3.7133]
[1746967393895,0.22208935,2511.8,2511.5,3.7133]
[1746967394271,0.22208935,2511.8,2511.5,4.08463]
[1746967394579,3.98081582,2512.1,2511.5,3.7133]
[1746967394750,3.98109248,2511.9,2511.5,3.7133]
[1746967395083,3.98085428,2512.1,2511.5,2.914]
[1746967395481,0.22208935,2512.0,2511.5,2.914]
[1746967395669,0.22208935,2512.0,2511.6,0.37419]
[1746967396188,0.22208935,2512.2,2511.6,0.37419]
[1746967396408,0.22208935,2512.2,2511.4,0.8279]
[1746967396598,3.9810511,2511.9,2511.4,0.8279]
[1746967396755,3.98073325,2512.1,2511.4,0.8279]
[1746967396957,0.8028,2511.9,2511.1,0.8279]
[1746967397465,4.78387485,2511.9,2511.1,0.8279]
[1746967397863,0.8028,2511.9,2511.1,0.8279]
[1746967398064,0.22208935,2511.8,2511.1,0.8279]
[1746967398990,0.22208935,2511.8,2511.2,0.03981556]
[1746967399302,0.22208935,2511.8,2511.3,0.7529]
[1746967399468,0.22208935,2512.1,2511.3,0.7529]
[1746967399669,3.98098664,2512.0,2511.3,0.7529]
[1746967399863,0.22208935,2512.1,2511.3,0.7529]
[1746967400079,0.22208935,2511.9,2511.3,0.7529]
[1746967400288,3.98123042,2511.8,2511.3,0.7529]
[1746967400773,5.02736559,2511.9,2511.3,0.7529]
[1746967400995,4.20339099,2511.8,2511.3,0.7529]
[1746967401215,3.98149615,2511.7,2511.3,0.7529]
[1746967401389,3.98152882,2511.6,2511.0,3.6679]
[1746967401588,0.22208935,2511.5,2511.0,6.26659]
[1746967402191,0.22208935,2511.5,2511.0,3.6679]
[1746967402798,0.22208935,2511.5,2511.1,0.03981541]
[1746967403002,0.22208935,2511.5,2511.2,0.7922]
[1746967403220,0.22208935,2511.5,2511.3,0.03981174]
[1746967403505,0.22208935,2511.9,2511.3,0.03981174]
[1746967403932,0.22208935,2511.9,2511.3,0.92301291]
[1746967404403,0.22208935,2511.9,2511.3,0.88320117]
[1746967404605,0.22208935,2511.9,2511.4,0.7922]
[1746967405408,12.20290563,2512.1,2511.4,0.7922]
[1746967405581,3.98107031,2511.9,2511.4,0.7922]
[1746967405783,0.39810703,2511.8,2511.4,0.7922]
[1746967405991,0.22208935,2511.7,2511.4,0.7922]
[1746967406220,0.22208935,2511.7,2511.5,0.03981538]
[1746967406917,0.22208935,2512.1,2511.5,0.03981538]
[1746967407315,4.20282972,2512.1,2511.5,0.03981538]
[1746967407614,3.98132537,2511.8,2511.4,0.7922]
[1746967407792,1.17903254,2511.7,2510.8,15.1035]
[1746967408116,3.98154612,2511.6,2510.8,15.1035]
[1746967408420,3.98176903,2511.5,2510.8,15.1035]
[1746967408622,0.22208935,2511.4,2510.8,0.7845]
[1746967409008,0.22208935,2511.4,2510.9,0.03982654]
[1746967409226,0.22208935,2511.4,2511.0,1.3345]
[1746967409427,0.22208935,2511.4,2511.2,0.7845]
[1746967409717,0.22208935,2512.1,2511.3,2.86]
[1746967410087,0.22208935,2512.1,2511.4,0.7845]
[1746967410295,0.22208935,2512.1,2511.5,0.36445]
[1746967410501,0.22208935,2512.3,2511.5,0.36445]
[1746967411039,0.22208935,2512.3,2511.4,0.7845]
[1746967411040,4.20254832,2512.3,2511.4,0.7845]
[1746967411330,3.98057479,2512.2,2511.4,0.7845]
[1746967411625,4.50180934,2512.2,2511.4,0.7845]
[1746967412223,0.22208935,2512.1,2511.5,0.03981197]
[1746967412400,0.22208935,2512.1,2511.5,0.3684312]
[1746967412810,0.22208935,2512.1,2511.6,0.7845]
[1746967413008,0.22208935,2512.1,2512.0,1.3345]
[1746967413346,0.29675753,2513.3,2512.2,0.7845]
[1746967413551,0.29675753,2513.3,2512.1,8.0]
[1746967413552,0.22208935,2513.4,2512.5,0.55]
[1746967413708,0.22208935,2513.4,2512.7,8.55]
[1746967413908,0.22208935,2513.4,2513.0,0.55]
[1746967414145,0.22208935,2513.9,2513.2,0.7845]
[1746967414353,0.22208935,2513.9,2513.3,2.89978096]
[1746967414651,0.22208935,2513.9,2513.4,8.77822747]
[1746967414806,0.22208935,2513.9,2513.4,0.7845]
[1746967415012,0.22208935,2514.0,2513.4,0.7845]
[1746967415351,4.64935817,2514.0,2513.4,0.7845]
[1746967415930,3.97804392,2513.8,2513.4,0.7845]
[1746967416136,3.97818344,2513.8,2513.3,2.86]
[1746967416310,0.22208935,2513.7,2513.3,2.86]
[1746967417238,0.22208935,2513.6,2513.3,2.86]
[1746967418079,3.97793428,2513.9,2513.3,2.86]
[1746967418237,1.3208365,2513.8,2513.3,2.86]
[1746967419002,0.22180218,2513.7,2513.3,2.86]
[1746967419542,0.44953077,2514.0,2513.4,0.7624]
[1746967419738,8.7527,2514.3,2513.4,0.7624]
[1746967419739,8.0,2514.4,2513.4,0.7624]
[1746967419988,2.877,2514.4,2513.6,0.7624]
[1746967420482,6.85409325,2514.4,2513.6,0.7624]
[1746967420777,2.877,2514.4,2513.6,0.7624]
[1746967420937,2.877,2514.4,2513.7,0.03977483]
[1746967421142,0.31694126,2514.3,2513.7,0.03977483]
[1746967421558,8.0,2514.8,2513.8,0.7624]
[1746967421748,0.22121516,2514.7,2513.8,0.7624]
[1746967421949,4.1978481,2514.7,2513.9,2.859]
[1746967422180,3.97678126,2514.6,2513.9,2.859]
[1746967422742,3.97667613,2514.7,2513.9,2.859]
[1746967422948,1.48546761,2514.6,2513.9,2.859]
[1746967423582,0.29387382,2514.7,2514.0,0.7862]
[1746967423749,3.97635987,2514.9,2514.0,0.7862]
[1746967424099,3.97635987,2514.9,2514.1,0.03976949]
[1746967424559,1006.84514413,2515.0,2514.1,0.03976949]
[1746967424761,7.87216952,2514.9,2514.1,0.03976949]
[1746967424964,3.89574974,2514.9,2514.1,0.03976949]
[1746967425349,7.87212797,2514.9,2514.1,0.03976949]
[1746967425573,3.97654614,2514.8,2514.1,0.03976949]
[1746967425747,4.28054257,2514.8,2514.0,0.7862]
[1746967425962,1.21526705,2514.7,2514.0,0.7862]
[1746967427087,0.30399643,2514.8,2514.1,0.03976953]
[1746967427247,7.87208173,2514.9,2514.1,0.03976953]
[1746967427647,3.89574974,2514.9,2514.2,0.8019]
[1746967428056,7.87207294,2514.9,2514.2,0.8019]
[1746967428398,3.89574974,2514.9,2514.3,0.03976734]
[1746967428901,3.89574974,2514.9,2514.2,0.8019]
[1746967429053,3.97672291,2514.7,2514.2,0.8019]
[1746967429953,7.87229122,2514.8,2514.2,0.8019]
[1746967430952,3.97662487,2514.7,2514.2,0.8019]
[1746967431156,0.7567,2514.7,2513.9,3.6609]
[1746967431381,3.9770141,2514.5,2513.9,3.6609]
[1746967431583,4.76401309,2514.6,2513.9,3.6609]
[1746967431584,3.97714453,2514.4,2513.9,3.6609]
[1746967431799,3.97741284,2514.2,2513.9,3.6609]
[1746967432010,3.63223746,2514.6,2513.9,2.859]
[1746967432168,3.9778349,2514.0,2513.4,2.858]
[1746967432369,0.07880312,2513.9,2513.4,2.858]
[1746967433283,3.97752269,2514.2,2513.4,2.858]
[1746967433487,0.07880312,2513.8,2513.4,2.858]
[1746967433698,3.97756652,2514.1,2513.4,2.858]
[1746967434028,3.97819946,2513.7,2513.4,2.858]
[1746967434167,3.97819946,2513.7,2513.0,15.1103]
[1746967434369,4.76726887,2513.8,2513.0,0.7973]
[1746967434687,4.53316514,2513.7,2513.0,0.7973]
[1746967435959,0.55484029,2513.7,2513.0,0.7973]
[1746967437091,4.53306734,2513.7,2513.0,0.7973]
[1746967437301,0.55484029,2513.7,2513.0,0.7973]
[1746967437904,4.53309861,2513.7,2513.0,0.7973]
[1746967438082,0.55484029,2513.7,2513.0,0.7973]
[1746967438477,4.53314039,2513.7,2513.0,0.7973]
[1746967439001,0.55484029,2513.7,2513.0,0.7973]
[1746967439777,4.5331856,2513.7,2513.0,0.7973]
[1746967440094,0.55484029,2513.7,2513.0,0.7973]
[1746967440611,0.22183205,2513.6,2513.0,0.7973]
[1746967441167,0.0781134,2513.5,2513.0,0.7973]
[1746967441894,0.47672689,2513.7,2513.0,0.7973]
[1746967442096,0.0781134,2513.4,2513.0,0.7973]
[1746967442308,3.97792971,2513.9,2513.0,1.16570876]
[1746967442604,3.97792971,2513.9,2513.0,0.7973]
[1746967442765,0.0781134,2513.8,2513.1,0.03978766]
[1746967442970,16.86979863,2514.0,2513.1,0.03978766]
[1746967443171,0.22235335,2513.7,2513.1,0.03978766]
[1746967443716,0.0781134,2513.6,2513.2,0.7546]
[1746967444277,0.75725399,2514.8,2513.2,0.7546]
[1746967444278,10.05,2514.7,2513.2,0.7546]
[1746967444513,1.0257254,2514.6,2513.4,0.7546]
[1746967444720,1.0257254,2514.6,2513.5,2.848]
[1746967445015,3.97784217,2514.0,2513.5,2.848]
[1746967445921,0.22244432,2513.9,2513.5,2.848]
[1746967446611,0.22244432,2513.9,2513.4,0.7546]
[1746967446612,0.22244432,2513.8,2513.4,0.7546]
[1746967447292,0.22244432,2513.9,2513.4,0.7546]
[1746967448008,3.97768229,2514.1,2513.4,0.7546]
[1746967448215,0.50394432,2514.2,2513.4,0.79438326]
[1746967448610,0.22244432,2514.2,2513.5,0.7978]
[1746967448921,0.22244432,2514.2,2513.6,0.03977773]
[1746967449132,0.22244432,2514.4,2513.7,0.7978]
[1746967449441,0.22244432,2514.4,2513.8,0.03977552]
[1746967449739,0.22244432,2514.3,2513.9,2.847]
[1746967450296,0.22244432,2514.2,2513.9,2.847]
[1746967450495,0.22244432,2514.2,2514.0,0.7978]
[1746967450738,0.22244432,2514.2,2514.0,0.83757443]
[1746967450942,0.22244432,2514.8,2514.0,0.83757443]
[1746967451095,4.1989386,2514.8,2514.0,0.7978]
[1746967451422,8.09468834,2514.8,2514.0,0.92201977]
[1746967451736,4.11819406,2514.8,2514.0,0.92201977]
[1746967451935,0.22244432,2514.7,2514.0,0.92201977]
[1746967452434,3.97678722,2514.6,2514.0,0.92201977]
[1746967452872,0.22244432,2514.5,2514.0,0.92201977]
[1746967453039,5.01699077,2514.5,2514.0,0.7978]
[1746967453244,0.22244432,2514.5,2514.0,0.7978]
[1746967453602,0.22244432,2514.4,2514.0,0.7978]
[1746967454292,0.22244432,2514.4,2513.8,0.7983]
[1746967454293,0.22244432,2514.3,2513.8,0.7983]
[1746967455700,0.22244432,2514.2,2513.8,0.7983]
[1746967455901,4.19989214,2514.2,2513.8,0.7983]
[1746967456104,0.81771524,2514.1,2513.8,0.7983]
[1746967456432,0.22244432,2514.2,2513.8,0.7983]
[1746967456659,0.22244432,2514.0,2513.8,0.7983]
[1746967457541,3.97717466,2514.4,2513.8,0.7983]
[1746967457542,0.22244432,2514.3,2513.8,0.7983]
[1746967457850,0.22244432,2514.3,2513.8,0.83807901]
[1746967458251,0.22244432,2514.2,2513.8,0.83807901]
[1746967458824,0.22244432,2514.1,2513.8,0.83807901]
[1746967459221,0.0753211,2514.0,2513.8,0.83807901]
[1746967459718,0.0753211,2514.0,2513.8,0.7983]
[1746967460116,3.9771217,2514.4,2513.8,0.7983]
[1746967460321,0.07727571,2513.9,2513.8,0.7983]
[1746967460526,0.39771217,2514.3,2513.8,0.7983]
[1746967460855,0.22267714,2514.2,2513.8,0.7983]
[1746967461039,0.29995285,2514.2,2513.8,0.7983]
[1746967461526,0.22267714,2514.1,2513.8,0.7983]
[1746967462116,3.97744708,2514.2,2513.8,0.7983]
[1746967462117,0.29995285,2514.0,2513.8,0.7983]
[1746967463347,0.22267714,2513.9,2513.8,0.7983]
[1746967464074,0.07727571,2513.9,2513.5,0.8101]
[1746967464280,0.07727571,2513.9,2513.2,3.5901]
[1746967464428,1.26489502,2513.9,2513.2,3.5901]
[1746967464633,0.07727571,2513.9,2513.2,3.5901]
[1746967465044,0.22267714,2513.8,2513.2,3.5901]
[1746967465474,0.07681587,2513.7,2513.2,3.5901]
[1746967465674,0.07681587,2513.7,2513.3,0.03978423]
[1746967465968,0.22267714,2513.6,2513.4,0.8101]
[1746967466151,0.29949301,2513.6,2513.5,0.92476807]
[1746967466344,0.22267714,2513.6,2513.5,1.73486807]
[1746967466746,0.22267714,2514.5,2513.6,0.8101]
[1746967467047,0.07604938,2514.4,2513.8,0.8101]
[1746967467246,0.22267714,2514.3,2513.9,2.81977136]
[1746967467652,0.22267714,2514.3,2514.0,0.8067]
[1746967467853,0.07604938,2514.2,2514.1,0.03977148]
[1746967468266,8.3034644,2514.9,2514.1,0.03977148]
[1746967468490,0.3034644,2514.9,2514.1,0.03977148]
[1746967468698,1000.7806,2515.0,2514.1,0.03977148]
[1746967468699,0.07604938,2514.8,2514.1,0.03977148]
[1746967468990,0.22270811,2514.7,2514.1,0.03977148]
[1746967469346,0.30052025,2514.7,2514.1,0.03977148]
[1746967469548,0.22270811,2514.6,2514.1,0.03977148]
[1746967469793,0.22270811,2514.6,2514.2,0.12421944]
[1746967470176,0.0789233,2514.5,2514.2,0.12421944]
[1746967470488,0.30163141,2514.5,2514.3,0.03976947]
[1746967471250,0.0789233,2514.5,2514.3,0.03976947]
[1746967471479,0.0789233,2514.5,2514.2,0.03976747]
[1746967471665,0.30338479,2514.9,2514.2,0.96443304]
[1746967471876,0.07976608,2514.4,2514.3,0.12421335]
[1746967472054,1000.0,2515.0,2514.3,0.12421335]
[1746967472254,0.07976608,2514.4,2514.3,0.93091335]
[1746967472483,1000.0,2515.0,2514.3,0.93091335]
[1746967472651,0.07980439,2514.4,2514.3,0.8067]
[1746967472850,1000.0,2515.0,2514.3,0.8067]
[1746967473099,0.07980439,2514.4,2514.3,0.8067]
[1746967473275,0.22264867,2514.9,2514.3,0.8067]
[1746967473583,0.07980439,2514.4,2514.3,0.8067]
[1746967473896,0.07972778,2514.4,2514.3,1.02383212]
[1746967474348,1000.0,2515.0,2514.3,1.02383212]
[1746967474544,1000.0,2515.0,2514.3,0.8067]
[1746967474545,0.07972778,2514.4,2514.3,0.8067]
[1746967474760,1003.97617513,2515.0,2514.3,0.8067]
[1746967474959,0.07988099,2514.4,2514.3,0.8067]
[1746967475187,1000.0,2515.0,2514.3,0.8067]
[1746967475397,0.07988099,2514.4,2514.3,0.8067]
[1746967475629,0.07988099,2514.4,2514.3,1.01985538]
[1746967475833,0.22262926,2514.9,2514.3,1.14406553]
[1746967475987,0.07988099,2514.8,2514.3,1.14406553]
[1746967478344,0.07988099,2514.8,2514.3,0.93091015]
[1746967480098,0.22262926,2514.7,2514.3,0.93091015]
[1746967480448,0.08007251,2514.6,2514.3,0.93091015]
[1746967480602,0.08007251,2514.6,2514.3,0.8067]
[1746967481016,0.22262926,2514.5,2514.3,0.8067]
[1746967481433,0.08007251,2514.4,2514.3,0.8067]
[1746967482135,1000.0,2515.0,2514.3,0.8067]
[1746967482336,0.08007251,2514.4,2514.3,0.8067]
[1746967482536,1000.0,2515.0,2514.3,0.8067]
[1746967483059,0.08078273,2514.9,2514.3,0.8067]
[1746967483257,0.2226276,2514.8,2514.4,0.12421694]
[1746967483560,0.2226276,2514.8,2514.5,2.78]
[1746967483936,0.08078273,2514.7,2514.5,2.78]